[Event "Austrian Bundesliga 2023-24"]
[Site "Austria"]
[Date "2024.03.23"]
[Round "10.9"]
[White "Vitiugov, Nikita"]
[Black "Samunenkov, Ihor"]
[Result "1-0"]
[ECO "D31"]
[WhiteElo "2688"]
[BlackElo "2544"]
[Annotator "TA"]
[PlyCount "85"]
[EventDate "2023.10.21"]
[EventType "team-tourn"]
[EventCountry "AUT"]
[SourceTitle "playchess.com"]
[Source "ChessBase"]
[SourceQuality "1"]
[TimeControl "40/5400+30:1800+30"]

{[%evp 19,85,25,24,28,31,22,19,22,23,14,28,19,15,20,22,28,24,4,20,12,18,19,28,18,23,9,24,17,29,17,18,16,91,92,79,99,157,166,159,162,148,88,161,172,180,184,189,146,138,145,189,171,185,0,155,157,138,163,161,154,162,143,710,695,1453,1427,1389,1383]} 1. d4 {[%emt 0:00:09]} d5 {[%emt 0:00:14]} 2. c4 {[%emt 0:00:11]} e6 {[%emt 0:00:11]} 3. Nc3 {[%emt 0:00:26]} a6 {[%emt 0:00:17]} 4. cxd5 {[%emt 0:00:19]} exd5 {[%emt 0:00:10]} 5. Nf3 {[%emt 0:00:15]} Nf6 {[%emt 0:00:16]} 6. Bg5 {[%emt 0:00:08] D37: Queen's Gambit Declined: 5 Bf4.} Be6 {[%emt 0:00:10]} 7. e3 {[%emt 0:00:10]} Nbd7 {[%emt 0:00:12]} 8. Bd3 {[%emt 0:00:10]} Bd6 {[%emt 0:00:12]} 9. O-O {[%emt 0:00:36]} c6 {[%emt 0:00:14]} 10. Bf4 {[%emt 0:00:21]} Qc7 {[%emt 0:00:22]} 11. Qd2 {[%emt 0:00:06] seems to push 11.Bxd6 aside.} O-O {[%emt 0:01:30]} 12. h3 {[%emt 0:00:06]} Rfe8 {[%emt 0:10:31]} 13. Rfe1 {[%emt 0:00:11]} Nb6 {[%emt 0:06:58]} 14. Ne2 $1 $146 {[%emt 0:01:14][%mdl 8] A top novelty.} ({Predecessor:} 14. b3 g6 15. a4 a5 16. Rac1 Bxf4 17. exf4 Nh5 18. f5 Bd7 19. Ne5 Bxf5 20. Bxf5 gxf5 {1-0 Xiong,J (2659)-So,W (2757) Titled Tuesday intern op 06th Feb Late blitz 2024 (9)}) 14... a5 {[%emt 0:19:31]} 15. Qc2 {[%emt 0:02:33]} g6 {[%emt 0:00:57]} 16. Ng5 {[%emt 0:09:50]} Bd7 {[%emt 0:14:33]} 17. Rac1 {[%emt 0:07:21]} Nc8 {[%emt 0:05:21]} 18. a3 {[%emt 0:14:19]} Qd8 {[%emt 0:04:49]} 19. Ng3 {[%emt 0:05:11]} a4 {[%emt 0:08:12]} 20. Nf3 {[%emt 0:08:30]} Bf8 {[%emt 0:01:31]} 21. Ne5 {[%emt 0:01:34]} Be6 {[%emt 0:03:11]} 22. Bg5 {[%emt 0:01:46]} h6 {[%emt 0:03:40]} 23. Bxf6 $1 {[%emt 0:01:07]} Qxf6 {[%emt 0:00:08]} 24. f4 {[%emt 0:01:13]} Nd6 {[%emt 0:02:23]} 25. Rf1 {[%emt 0:01:56]} Qh4 {[%emt 0:05:14]} (25... h5 $11 {keeps the balance.}) 26. Rf3 $16 {[%emt 0:06:16]} Bg7 {[%emt 0:05:47]} 27. Rcf1 $1 {[%emt 0:01:32]} Qe7 {[%emt 0:03:24]} (27... h5 $142) 28. f5 $16 {[%emt 0:04:42]} gxf5 {[%emt 0:00:32]} 29. Bxf5 {[%emt 0:01:39]} Qg5 {[%emt 0:00:38]} 30. Kh2 {[%emt 0:10:26]} (30. Bxe6 $142 $1 fxe6 (30... Rxe6 $2 31. Nxf7 Nxf7 32. Nf5 $18) 31. Nd7) 30... h5 {[%emt 0:02:09]} (30... Nxf5 $2 31. Nxf5 Bxf5 32. Rxf5 Rxe5 33. Rxg5 (33. dxe5 Bxe5+ 34. Kh1 Qg3 $15) 33... Rxg5 34. Rf3 $18) (30... f6 $16 {was called for.} 31. Ng4 Kh8) 31. Bxe6 $18 {[%emt 0:04:07]} fxe6 {[%emt 0:00:29]} 32. h4 {[%emt 0:06:16]} Qxh4+ {[%emt 0:00:23]} 33. Kg1 {[%emt 0:00:01]} Ne4 {[%emt 0:01:28]} 34. Nxe4 {[%emt 0:01:15]} Qxe4 {[%emt 0:00:10] [#]} 35. Qf2 $1 {[%emt 0:00:53]} Rf8 {[%emt 0:00:47] [#]} (35... Bxe5 36. dxe5 Qxe5 37. Rf7 $11) 36. Rf7 $2 {[%emt 0:00:21]} (36. Nf7 $1 $18) 36... h4 $2 {[%emt 0:00:46]} (36... Kh8 $1 $11) 37. Nd7 $16 {[%emt 0:00:48]} Rxf7 {[%emt 0:00:28]} 38. Qxf7+ {[%emt 0:00:04]} Kh8 {[%emt 0:00:05]} 39. Rf3 {[%emt 0:00:53]} Rg8 {[%emt 0:01:11]} 40. Rh3 {[%emt 0:00:00]} Qb1+ $2 {[%emt 0:00:00][%mdl 8192]} (40... Bh6 $16 41. Qxg8+ Kxg8 42. Nf6+ Kf7 43. Nxe4 dxe4) 41. Kh2 $18 {[%emt 0:06:10]} Bh6 {[%emt 0:09:49]} 42. Qf6+ {[%emt 0:01:29]} (42. Qxe6 Rxg2+ 43. Kxg2 Qc2+ 44. Kg1 Qd1+ 45. Kf2 Qd2+ 46. Kf3 Qd1+ 47. Kf2 Qd2+ 48. Kf3 Qd1+ 49. Kf2 $11) 42... Kh7 {[%emt 0:00:31]} 43. Qxh4 {[%emt 0:01:36]} ({Worse is} 43. Qxe6 Rxg2+ 44. Kxg2 Qc2+ 45. Kf1 (45. Kg1 Qd1+ 46. Kf2 Qd2+ 47. Kf1 Qd1+ 48. Kf2 Qd2+ 49. Kf3 Qd1+ 50. Kf2 $11) 45... Qd1+ 46. Kf2 Qd2+ 47. Kf1 Qd1+ 48. Kf2 Qd2+ 49. Kf1 Qc1+ 50. Ke2 Qc2+ 51. Ke1 Qc1+ 52. Ke2 Qc2+ 53. Ke1 Qb1+ 54. Kf2 (54. Kd2 Qxb2+ 55. Ke1 Qb1+ 56. Kf2 Qc2+ 57. Kg1 Qd1+ 58. Kf2 Qc2+ 59. Kg1 Qd1+ 60. Kf2 Qd2+ 61. Kf1 Qd1+ 62. Kf2 $11) 54... Qc2+ 55. Ke1 $11) 1-0

[Event "Austrian Bundesliga 2023-24"]
[Site "Austria"]
[Date "2024.03.23"]
[Round "10.10"]
[White "Korpa, Bence"]
[Black "Maghsoodloo, Parham"]
[Result "0-1"]
[ECO "B22"]
[WhiteElo "2545"]
[BlackElo "2717"]
[Annotator "TA"]
[PlyCount "76"]
[EventDate "2023.10.21"]
[EventType "team-tourn"]
[EventCountry "AUT"]
[SourceTitle "playchess.com"]
[Source "ChessBase"]
[SourceQuality "1"]
[TimeControl "40/5400+30:1800+30"]

{[%evp 16,76,8,7,12,13,0,12,21,0,0,0,0,0,0,0,10,-13,0,0,0,0,0,-2,0,-3,0,-31,-20,-67,-66,-76,-72,-70,-70,-69,-68,-56,-67,-278,-246,-316,-324,-286,-248,-226,-222,-304,-305,-300,-292,-304,-317,-318,-282,-402,-322,-393,-366,-381,-306,-716,-725]} 1. e4 {[%emt 0:00:05][%cal Be2e4,Be4e5][%mdl 32]} c5 {[%emt 0:00:07]} 2. c3 {[%emt 0:00:07]} Nf6 {[%emt 0:00:04]} 3. e5 {[%emt 0:00:11]} Nd5 {[%emt 0:00:07]} 4. Nf3 {[%emt 0:00:12]} Nc6 {[%emt 0:00:17]} 5. d4 {[%emt 0:00:38]} cxd4 {[%emt 0:00:06]} 6. cxd4 {[%emt 0:00:07]} d6 {[%emt 0:00:04]} 7. Bc4 {[%emt 0:01:22]} Nb6 {[%emt 0:00:08]} 8. Bb5 {[%emt 0:00:21]} Bd7 {[%emt 0:00:07]} 9. Nc3 {[%emt 0:17:40]} dxe5 {[%emt 0:03:09]} 10. dxe5 {[%emt 0:00:15]} g6 {[%emt 0:00:11]} 11. Qe2 {[%emt 0:08:03]} Bg7 {[%emt 0:00:21] The position is equal.} 12. h3 {[%emt 0:00:21]} O-O {[%emt 0:22:05]} 13. O-O {[%emt 0:00:21]} Qc7 {[%emt 0:02:24]} 14. Bf4 {[%emt 0:04:52]} a6 {[%emt 0:07:41]} 15. Bd3 {[%emt 0:01:57]} Be6 {[%emt 0:07:16]} 16. Rac1 {[%emt 0:13:54]} Nd5 {[%emt 0:01:57]} (16... Rad8 {with more complications.} 17. Ng5 Nd4 18. Qe3 Nc4) 17. Bg3 {[%emt 0:01:57]} Bh6 {[%emt 0:07:44]} 18. Nxd5 {[%emt 0:19:12]} Bxd5 {[%emt 0:00:05]} 19. e6 {[%emt 0:00:32]} Qa5 {[%emt 0:04:19]} 20. exf7+ {[%emt 0:02:27]} Rxf7 {[%emt 0:00:05][%cal Od5f3] [#] Hoping for ...Bxf3!} 21. Rc4 {[%emt 0:00:12][%cal Of3e5]} Bg7 {[%emt 0:08:01]} 22. Be4 {[%emt 0:11:03] Prevents e6.} (22. Rfc1 $11) 22... Bxc4 $15 {[%emt 0:05:21]} (22... Qxa2 $2 23. Bxd5 Qa5 24. Rd1 $18 (24. Bxf7+ Kxf7 25. Rd1 Kf8 $18) (24. Bxc6 bxc6 25. Rxc6 Qb5 $18)) 23. Qxc4 {[%emt 0:00:07]} Rd8 {[%emt 0:00:04] Dodges Bd5} (23... Bxb2 $2 {too greedy.} 24. Bd5 Raf8 25. Rb1 $18 (25. Bxf7+ Rxf7 26. Rb1 Qc3 $18) (25. Ng5 e6 $16)) 24. Bc2 {[%emt 0:00:05]} Nd4 {[%emt 0:13:37]} ({But not} 24... Bxb2 25. Bb3 Rdf8 26. Qe4 $11) 25. Nxd4 {[%emt 0:04:01]} Rxd4 {[%emt 0:00:08]} 26. Qe6 {[%emt 0:00:58]} Qd5 {[%emt 0:00:29]} 27. Qe1 {[%emt 0:09:08] White does not recover from this.} (27. Qe3 $15) 27... Qxa2 $19 {[%emt 0:02:41]} 28. Qe3 {[%emt 0:02:18] [#]} Rb4 {[%emt 0:03:34] Inhibits Bb3.} ({Weaker is} 28... Qxb2 29. Bb3 Rd8 30. Qxe7 Qxb3 31. Qxd8+ Rf8 32. Qd6 $15) 29. Rd1 {[%emt 0:00:47]} Rxb2 {[%emt 0:02:14]} 30. Be4 {[%emt 0:01:15]} Re2 {[%emt 0:05:32]} 31. Bd5 {[%emt 0:00:56]} Rxe3 {[%emt 0:02:26]} 32. Bxa2 {[%emt 0:00:06] A strong pair of Bishops.} Re2 {[%emt 0:00:03]} 33. Bc4 {[%emt 0:00:44]} Re4 {[%emt 0:00:06]} 34. Rd8+ {[%emt 0:00:32]} Bf8 {[%emt 0:00:09]} 35. Bd5 {[%emt 0:00:41]} (35. Ba2 {keeps fighting.}) 35... Re1+ {[%emt 0:00:15]} 36. Kh2 {[%emt 0:00:05]} e6 {[%emt 0:00:02]} 37. Bc4 {[%emt 0:00:12]} b5 {[%emt 0:00:48]} 38. Bd3 {[%emt 0:00:23]} (38. f3 Re3 39. Bf2 Rexf3 (39... Re5 $2 40. Bd4 $19) 40. gxf3 bxc4 41. Rc8) 38... Rd1 {[%emt 0:00:22] Weighted Error Value: White=0.48/Black=0.07 (flawless) .  Loses game:     	White=1     	---        Mistake:       	White=3     	---        Inaccurate:     	White=2     	---        OK:         	White=14    	Black=14     Best:        	---       	Black=4} 0-1

[Event "Austrian Bundesliga 2023-24"]
[Site "Austria"]
[Date "2024.03.23"]
[Round "10.11"]
[White "Vallejo Pons, Francisco"]
[Black "Mesaros, Florian"]
[Result "1-0"]
[ECO "C77"]
[WhiteElo "2653"]
[BlackElo "2414"]
[Annotator "RC"]
[PlyCount "139"]
[EventDate "2023.10.21"]
[EventType "team-tourn"]
[EventCountry "AUT"]
[SourceTitle "playchess.com"]
[Source "ChessBase"]
[SourceQuality "1"]
[TimeControl "40/5400+30:1800+30"]

1. e4 {[%emt 0:00:04]} e5 {[%emt 0:00:13]} 2. Nf3 {[%emt 0:00:12]} Nc6 {[%emt 0:00:06]} 3. Bb5 {[%emt 0:00:55]} a6 {[%emt 0:00:17]} 4. Ba4 {[%emt 0:00:07]} Nf6 {[%emt 0:00:08]} 5. d3 {[%emt 0:00:52]} d6 {[%emt 0:00:30]} 6. c3 {[%emt 0:00:58]} g6 {[%emt 0:00:45]} 7. O-O {[%emt 0:00:58]} Bg7 {[%emt 0:00:18]} 8. Re1 {[%emt 0:00:38]} O-O {[%emt 0:00:46]} 9. h3 {[%emt 0:00:36]} b5 {[%emt 0:05:39]} 10. Bc2 {[%emt 0:01:04]} d5 {[%emt 0:05:39]} 11. Nbd2 {[%emt 0:10:48]} Re8 {[%emt 0:03:44]} 12. a4 {[%emt 0:02:58]} b4 {[%emt 0:09:26]} 13. a5 {[%emt 0:02:15]} Rb8 {[%emt 0:08:33]} 14. Ba4 {[%emt 0:02:37]} Bd7 {[%emt 0:02:26]} 15. Nb3 {[%emt 0:08:22]} bxc3 {[%emt 0:11:43]} 16. bxc3 {[%emt 0:00:58]} Na7 {[%emt 0:01:08]} 17. Nc5 {[%emt 0:20:08]} Bxa4 {[%emt 0:02:32]} 18. Qxa4 {[%emt 0:00:23]} Qd6 {[%emt 0:05:16]} 19. Be3 {[%emt 0:00:51]} Rb5 {[%emt 0:06:25]} 20. Nxa6 {[%emt 0:20:23]} Qxa6 {[%emt 0:03:57]} 21. Bxa7 {[%emt 0:00:19]} dxe4 22. dxe4 {[%emt 0:00:37]} Ra8 {[%emt 0:03:46]} 23. c4 {[%emt 0:01:19]} Rb7 {[%emt 0:12:07]} 24. Bc5 Bf8 {[%emt 0:05:37]} 25. Bxf8 {[%emt 0:01:42]} Kxf8 {[%emt 0:00:20]} 26. Nxe5 {[%emt 0:01:18]} Qd6 {[%emt 0:03:33]} 27. Nxg6+ {[%emt 0:05:45]} hxg6 {[%emt 0:01:54]} 28. e5 {[%emt 0:00:05]} Qe6 {[%emt 0:01:16]} 29. exf6 {[%emt 0:00:52]} Qxf6 {[%emt 0:00:07]} 30. Ra3 {[%emt 0:02:30]} Qd6 {[%emt 0:04:35]} 31. Rae3 {[%emt 0:02:37]} Ra6 {[%emt 0:02:33]} 32. Qe8+ {[%emt 0:05:02]} Kg7 {[%emt 0:00:04]} 33. Re7 {[%emt 0:02:19]} Qf4 {[%emt 0:00:56]} 34. Rxf7+ {[%emt 0:01:54]} Qxf7 {[%emt 0:00:07]} 35. Re7 {[%emt 0:00:02]} Qxe7 {[%emt 0:00:48]} 36. Qxe7+ {[%emt 0:00:03]} Kg8 {[%emt 0:00:33]} 37. Qd8+ {[%emt 0:01:17]} Kg7 {[%emt 0:00:18]} 38. Qd7+ {[%emt 0:00:31]} Kh6 {[%emt 0:00:07]} 39. f4 {[%emt 0:02:39]} Rba7 {[%emt 0:01:06]} 40. g4 {[%emt 0:00:00]} g5 {[%emt 0:00:00]} 41. f5 {[%emt 0:14:39]} Rxa5 {[%emt 0:01:01]} 42. Qe6+ {[%emt 0:02:23]} Kh7 {[%emt 0:03:25]} 43. Qg6+ {[%emt 0:03:33]} Kh8 {[%emt 0:00:05]} 44. f6 {[%emt 0:07:43]} c6 {[%emt 0:02:49]} 45. Qe8+ {[%emt 0:01:34]} Kh7 {[%emt 0:00:05]} 46. f7 {[%emt 0:01:01]} Ra1+ {[%emt 0:01:06]} 47. Kf2 {[%emt 0:00:10]} R7a2+ {[%emt 0:00:44]} 48. Ke3 {[%emt 0:00:35]} Ra8 {[%emt 0:00:40]} 49. Kd4 {[%emt 0:04:39]} Rd1+ {[%emt 0:00:48]} 50. Kc5 {[%emt 0:00:19]} Rdd8 {[%emt 0:00:18]} 51. Qe7 {[%emt 0:00:54]} Kg6 {[%emt 0:02:28]} 52. h4 {[%emt 0:00:44]} Rf8 {[%emt 0:12:33]} 53. h5+ {[%emt 0:00:17]} Kg7 {[%emt 0:00:15]} 54. Qxg5+ {[%emt 0:00:27]} Kxf7 {[%emt 0:00:05]} 55. Qg6+ {[%emt 0:00:37]} Ke7 {[%emt 0:00:02]} 56. Qd6+ {[%emt 0:00:11]} Kf7 {[%emt 0:00:37]} 57. Qg6+ {[%emt 0:00:38]} Ke7 {[%emt 0:00:02]} 58. h6 {[%emt 0:00:27]} Rg8 {[%emt 0:03:36]} 59. Qe4+ {[%emt 0:00:37]} Kf7 {[%emt 0:01:46]} 60. Qf5+ {[%emt 0:00:11]} Ke7 {[%emt 0:00:11]} 61. h7 {[%emt 0:01:15]} Rh8 {[%emt 0:01:57]} 62. Qg6 {[%emt 0:00:37]} Ra5+ {[%emt 0:01:40]} 63. Kb4 {[%emt 0:00:28]} Raa8 {[%emt 0:00:34]} 64. g5 {[%emt 0:00:32]} Raf8 {[%emt 0:01:34]} 65. Qg7+ {[%emt 0:00:14]} Kd6 {[%emt 0:00:31]} 66. Qd4+ {[%emt 0:00:33]} Ke6 {[%emt 0:00:14]} 67. g6 {[%emt 0:00:23]} c5+ {[%emt 0:00:51]} 68. Kxc5 {[%emt 0:00:42]} Rb8 {[%emt 0:02:15]} 69. Qxh8 {[%emt 0:00:39]} Rxh8 {[%emt 0:00:09]} 70. g7 {[%emt 0:00:01]} 1-0

[Event "Austrian Bundesliga 2023-24"]
[Site "Austria"]
[Date "2024.03.23"]
[Round "10.12"]
[White "Gschnitzer, Adrian"]
[Black "Bacrot, Etienne"]
[Result "0-1"]
[ECO "B48"]
[WhiteElo "2423"]
[BlackElo "2680"]
[Annotator "TA"]
[PlyCount "120"]
[EventDate "2023.10.21"]
[EventType "team-tourn"]
[EventCountry "AUT"]
[SourceTitle "playchess.com"]
[Source "ChessBase"]
[SourceQuality "1"]
[TimeControl "40/5400+30:1800+30"]

{[%evp 11,120,31,43,22,56,33,39,47,56,31,20,36,37,21,30,30,32,28,36,26,31,30,35,0,32,-142,-139,-139,-41,-78,-76,-83,-37,-112,-122,-172,-45,-171,-159,-155,-163,-159,-187,-170,-180,-179,-167,-218,-194,-204,-215,-191,-221,-209,-194,-301,-264,-628,-461,-557,-408,-375,0,-449,-228,-241,-167,-234,-165,-153,-187,-216,-158,-167,-166,-214,-138,-206,-168,-181,-179,-194,-164,-177,-170,-177,-161,-164,-64,-165,-92,-235,-169,-347,-327,-345,-326,-1395,-1385,-1369,-667,-761,-755,-533,-295,-29979,-29980,-29980,-29981,-29981,-29982]} 1. e4 {[%emt 0:00:03]} c5 {[%emt 0:00:19]} 2. Nf3 {[%emt 0:00:02]} e6 {[%emt 0:00:06]} 3. d4 {[%emt 0:00:06]} cxd4 {[%emt 0:00:08]} 4. Nxd4 {[%emt 0:00:06]} Nc6 {[%emt 0:00:08]} 5. Nc3 {[%emt 0:00:07]} Qc7 {[%emt 0:00:21]} 6. Be3 {[%emt 0:00:18]} a6 {[%emt 0:00:18]} 7. Qf3 {[%emt 0:00:26]} h5 {[%emt 0:00:36]} 8. Nxc6 {[%emt 0:13:59]} Qxc6 {[%emt 0:02:05]} 9. Bd3 {[%emt 0:02:00] Weiß steht etwas besser.} Ba3 {[%emt 0:11:55]} 10. bxa3 {[%emt 0:06:59]} Qxc3+ {[%emt 0:00:29]} 11. Ke2 {[%emt 0:00:09]} Ne7 {[%emt 0:05:12][%cal Oe6e5]} 12. Rhd1 {[%emt 0:10:25]} e5 {[%emt 0:13:29]} 13. h3 {[%emt 0:09:41]} d6 {[%emt 0:05:56][%cal Oc8e6]} 14. Rab1 {[%emt 0:00:32]} b5 {[%emt 0:02:39][%cal Oc8e6]} 15. Kf1 {[%emt 0:11:32]} Be6 {[%emt 0:08:21] [#]} 16. a4 $1 {[%emt 0:04:02]} bxa4 {[%emt 0:07:15][%cal Oh5h4]} 17. Rb7 {[%emt 0:01:50]} (17. Bd2 {vereinfacht} Qc6 18. a3 Ng6 19. Kg1) 17... Qc8 {[%emt 0:03:26]} 18. Rdb1 {[%emt 0:01:53]} (18. Rb4 $14 {behält die Oberhand.}) 18... Bxa2 $17 {[%emt 0:01:41]} 19. R1b6 {[%emt 0:05:16][%cal Of3d1]} Ng6 {[%emt 0:07:03]} (19... Nc6 $1 $17 {Und ...Nd8 würde nun gewinnen.} 20. Qg3 (20. Bxa6 $2 Rxa6 21. Qd1 O-O $19) 20... Kf8) 20. Bc1 {[%emt 0:05:16][%cal Oc1a3]} (20. Bxa6 $2 O-O (20... Qxc2 21. Rb2 $16) (20... Rxa6 21. Rb8 $16) 21. Bd3 a3 $19) 20... O-O {[%emt 0:09:05]} 21. Qxh5 {[%emt 0:00:36][%cal Of1g1]} (21. Bxa6 $2 Qxc2 (21... Rxa6 $2 22. Rxa6 Bc4+ 23. Kg1 $19) 22. Ba3 Rxa6 23. Rxa6 Bc4+ 24. Kg1 Bxa6 $19) 21... Qc5 {[%emt 0:04:01]} (21... Bc4 $17 {Weiss muss nun ...Bxd3+ beachten.} 22. Bxc4 Qxc4+ 23. Qe2 Qd4) 22. g3 {[%emt 0:04:24]} (22. Bxa6 $2 Rxa6 (22... Qxc2 $2 23. Bg5 $19) 23. Rxa6 Bc4+ (23... Qxc2 $2 24. Rxd6 Qxc1+ 25. Qd1 $19) 24. Kg1 Bxa6 $19) ({Vorzuziehen ist} 22. Qd1 $15) 22... a3 $1 {[%emt 0:06:31]} 23. Rb4 {[%emt 0:00:30]} (23. Bxa6 $2 Rxa6 (23... Qxc2 $2 24. Bxa3 Rxa6 25. Qf3 $19) 24. Rxa6 Bc4+ (24... Qxc2 $2 25. Rxd6 Qxe4 26. Kg1 $19) 25. Kg2 Bxa6 $19) (23. Be3 $17 {ist eine bessere Verteidigung.} Qc8 24. Bc1 (24. Bxa6 $2 Rxa6 25. Rxa6 Bc4+ 26. Kg1 Bxa6 $19)) 23... Qc3 {[%emt 0:05:44]} (23... a5 $1 $19 {[%cal Ra5b4]} 24. R4b5 Qc3) 24. Ra4 {[%emt 0:01:20]} (24. Qd1 $1 $15) 24... Qc6 $19 {[%emt 0:00:58][%csl LRa4,LRb7]} 25. Rbb4 {[%emt 0:05:01]} a5 $1 {[%emt 0:00:13]} 26. Rb5 {[%emt 0:00:16]} Bb1 {[%emt 0:01:13]} 27. Qe2 {[%emt 0:05:31]} a2 {[%emt 0:00:09]} 28. Bb2 {[%emt 0:00:10]} Rfb8 {[%emt 0:01:23]} 29. Raxa5 {[%emt 0:01:26]} (29. Kg2 $142) 29... Qc8 {[%emt 0:00:59] Droht stark ...Rxa5.} 30. Ba1 {[%emt 0:03:49]} Rxa5 {[%emt 0:00:41]} 31. Rxa5 {[%emt 0:00:01]} Qxh3+ {[%emt 0:00:12]} 32. Kg1 {[%emt 0:00:08]} Nf8 {[%emt 0:01:22]} 33. Ra7 {[%emt 0:02:22]} (33. Ra6 {kämpft weiter.}) 33... Ne6 {[%emt 0:01:22]} 34. Qf3 $2 {[%emt 0:01:47]} (34. Qf1 Qg4 35. Qe2 Qxe2 36. Bxe2) 34... Ng5 {[%emt 0:00:31][%cal Be6g5,Bg5h7,Bh7f6][%mdl 32]} 35. Qe2 {[%emt 0:00:48]} Rc8 {[%emt 0:01:28][%cal Ob1c2] ...Bxc2! ist eine echte Drohung.} 36. Ra3 {[%emt 0:01:41]} Rb8 $2 {[%emt 0:00:14]} (36... Kh7 $19 37. Qd1 f6) 37. Qd1 $2 {[%emt 0:01:17][%mdl 8192]} (37. Ra7 $1 $11 {und Weiss steht sicher.} Kh7 38. Ra6) 37... Qd7 {[%emt 0:00:40]} (37... Kh7 $142 38. Rc3 f6) 38. Qh5 {[%emt 0:01:10]} Nh7 {[%emt 0:00:26]} 39. Kg2 {[%emt 0:00:30]} (39. Qf5 $142 Qxf5 40. exf5) 39... Nf6 {[%emt 0:00:21]} 40. Qe2 {[%emt 0:00:00]} Rc8 {[%emt 0:00:00] Schwarz steht aktiver.} 41. f3 {[%emt 0:06:29]} Qc7 {[%emt 0:01:14][%cal Og7g6] Es drohte Bc4} 42. Qd2 {[%emt 0:02:11]} Kh7 {[%emt 0:05:43]} (42... Bxc2 43. Rc3 $17 (43. Rxa2 Bxd3 44. Qxd3 Qc1 $17) (43. Rxa2 $2 Bxd3 44. Qxd3 Qc1 $17)) 43. Ra4 {[%emt 0:06:56]} (43. Rc3 $142 Qa5 44. Kf1 Rxc3 45. Qxc3) 43... Qd7 {[%emt 0:07:11]} (43... Bxc2 44. Rc4 (44. Rxa2 Bxd3 45. Qxd3 Nh5 $17) 44... Qxc4 45. Bxc4 Rxc4 46. Qxd6 $11) 44. Ra6 {[%emt 0:01:50]} (44. Rc4 $17) 44... Kg8 {[%emt 0:01:06]} 45. Ra5 {[%emt 0:02:24]} Qd8 {[%emt 0:01:57]} 46. Ra7 {[%emt 0:00:55]} Qb6 {[%emt 0:01:04]} 47. Ra4 {[%emt 0:01:15]} Nd7 {[%emt 0:01:40]} 48. Bc4 {[%emt 0:04:16]} Qc6 {[%emt 0:01:30] Verhindert Qd5} 49. Rb4 {[%emt 0:02:57] [#]} Qc7 {[%emt 0:01:56]} (49... Nf6 $1 $19 {[%cal Rf6e4] ...Nxe4! wäre nun fies.} 50. Qe2 Qc5) 50. Qd5 {[%emt 0:02:05] [#]} ({Günstiger ist} 50. c3 $1 $15) 50... Nf6 $1 $36 {[%emt 0:05:36][%mdl 2048] Schwarz bestimmt, wo es lang geht.} ({Schlechter ist} 50... Bxc2 51. Qxf7+ Kh8 52. Qh5#) 51. Qd3 {[%emt 0:01:05]} (51. Qd2 $17 {ist der einzige Weg für Weiss..}) 51... Qc6 {[%emt 0:00:20]} 52. Qd2 $2 {[%emt 0:02:02] [#]} (52. Qe2 {war einen Versuch wert.}) 52... Nxe4 $1 {[%emt 0:01:55][%mdl 512]} 53. fxe4 {[%emt 0:03:11]} Qxe4+ {[%emt 0:00:05]} 54. Kh3 $2 {[%emt 0:01:08]} (54. Kg1 Rxc4 55. Rxc4 Qxc4 56. Qxd6) 54... Rxc4 {[%emt 0:00:50]} 55. Rxc4 {[%emt 0:00:02]} Qxc4 {[%emt 0:00:13]} (55... Qh1+ $142 56. Qh2 Qf1+ 57. Kg4 Qxc4+ 58. Kf3 Bxc2 (58... Qxc2 $2 59. Qxc2 Bxc2 60. Kg4 $19)) 56. Qxd6 {[%emt 0:00:05] KQB-KQB} f6 {[%emt 0:02:08]} 57. Qd8+ {[%emt 0:00:02]} Kh7 {[%emt 0:00:19] ( -> ...Qf1+)} 58. Qe8 $2 {[%emt 0:00:06]} (58. Qd3+ $19 Qxd3 59. cxd3 Bxd3 60. Kg2) 58... Qf1+ {[%emt 0:00:19] Schwarz setzt Matt.} ({Und nicht} 58... Qxc2 59. Qh5+ Kg8 60. Qe8+ Kh7 61. Qh5+ Kg8 62. Qe8+ Kh7 $11) 59. Kh4 {[%emt 0:00:25]} Qh1+ {[%emt 0:00:13]} ({Lieber nicht} 59... Bxc2 60. Qh5+ Kg8 61. Qe8+ Kh7 62. Qh5+ Kg8 63. Qe8+ Kh7 $11) 60. Kg4 {[%emt 0:00:09]} Qd1+ {[%emt 0:01:13] Gewichteter Fehlerwert: Weiß=0.69/Schwarz=0.54.  Verlustzug:     	Weiß=1     	---        Gewinn verpasst:   	---       	Schwarz=1     Fehler:       	Weiß=14    	Schwarz=5     Ungenau:       	Weiß=2     	Schwarz=4     OK:         	Weiß=16    	Schwarz=15    Bester:       	Weiß=2     	Schwarz=7     Stark:        	---       	Schwarz=2     Brilliant:      	---       	Schwarz=1} 0-1